bitfinex/quotes_ETHUSD_20240811
["timestamp","ask_amount","ask_price","bid_price","bid_amount"]
[1723390026912,2.66758,2624.1,2623.6,2.66803]
[1723390027106,2.66758,2624.1,2623.6,2.66802]
[1723390027273,2.66758,2624.1,2623.6,3.49619039]
[1723390027473,2.66754,2624.2,2623.6,3.49619039]
[1723390027813,5.33509,2624.2,2623.7,2.66798]
[1723390028002,2.66754,2624.2,2623.6,0.82817039]
[1723390028317,2.66758,2624.1,2623.6,3.49625039]
[1723390028618,2.66754,2624.2,2623.6,3.49625039]
[1723390028817,9.96742,2624.3,2623.8,2.66788]
[1723390028979,2.66753,2624.2,2623.7,0.34962504]
[1723390029492,5.66735,2624.4,2623.8,2.66782]
[1723390029811,5.66735,2624.4,2623.7,0.34962504]
[1723390029812,2.66748,2624.2,2623.7,0.34962504]
[1723390030005,2.66748,2624.2,2623.7,3.01755504]
[1723390030218,2.66748,2624.2,2623.8,0.3017555]
[1723390031704,2.66737,2624.3,2623.8,2.9696255]
[1723390031940,3.0,2624.4,2623.5,2.66811]
[1723390032247,2.66773,2624.0,2623.5,5.33626]
[1723390032428,2.66773,2624.0,2623.5,2.66812]
[1723390033638,2.66773,2624.0,2623.4,2.2906]
[1723390033957,2.66789,2623.8,2623.5,0.495892]
[1723390034101,2.66781,2623.9,2623.4,4.95883]
[1723390034301,2.66768,2624.0,2623.5,2.66819]
[1723390034501,2.66768,2624.0,2623.6,0.495879]
[1723390034941,5.2917,2624.6,2623.6,0.495879]
[1723390034942,7.3,2624.7,2623.9,2.2598]
[1723390035112,0.64515364,2624.6,2624.1,5.33504]
[1723390035326,2.66704,2624.7,2624.2,3.28480056]
[1723390035632,2.66684,2624.9,2624.3,0.0762055]
[1723390035833,2.3686,2625.2,2624.3,2.7434755]
[1723390035834,2.66697,2624.7,2624.3,2.7434755]
[1723390036053,2.66697,2624.7,2623.9,2.2598]
[1723390036054,2.66748,2624.2,2623.9,2.2598]
[1723390036206,2.66748,2624.2,2623.5,2.39697629]
[1723390036207,2.66763,2624.1,2623.5,2.2598]
[1723390036408,2.66763,2624.1,2623.6,5.33603]
[1723390036649,2.66763,2624.1,2623.6,3.427583]
[1723390036817,2.66771,2624.0,2623.6,0.759583]
[1723390037018,2.66754,2624.2,2623.6,2.66803]
[1723390037336,2.66754,2624.2,2623.7,0.492783]
[1723390037537,2.66754,2624.2,2623.5,4.92791]
[1723390038082,2.66707,2624.6,2623.5,2.2598]
[1723390038083,2.66789,2623.8,2623.5,2.2598]
[1723390038287,2.66779,2623.9,2623.5,2.2598]
[1723390038589,2.66779,2623.9,2623.6,0.492806]
[1723390038970,2.66779,2623.9,2623.5,2.2598]
[1723390039855,2.66765,2624.1,2623.6,2.66799]
[1723390040241,2.66748,2624.2,2623.7,2.66798]
[1723390040442,2.66758,2624.1,2623.7,2.66798]
[1723390040748,5.33524,2624.1,2623.5,4.92794]
[1723390040974,2.66758,2624.1,2623.6,3.160881]
[1723390042242,2.66758,2624.1,2623.6,3.160831]
[1723390042578,2.66717,2624.5,2623.9,2.66772]
[1723390042779,2.66717,2624.5,2623.7,0.61828302]
[1723390042780,2.66717,2624.5,2623.8,2.2598]
[1723390042958,2.66738,2624.3,2623.8,4.92767]
[1723390043161,2.66717,2624.5,2623.9,3.48152531]
[1723390043350,2.66729,2624.4,2623.9,0.81376531]
[1723390043551,2.66748,2624.2,2623.9,0.81376531]
[1723390044148,2.66748,2624.2,2623.7,3.2099531]
[1723390044350,2.66773,2624.0,2623.5,2.66817]
[1723390044648,2.61758,2624.1,2623.6,2.66803]
[1723390044863,2.61758,2624.1,2623.7,0.533616]
[1723390045181,2.66759,2624.1,2623.7,0.533616]
[1723390047398,2.66769,2624.0,2623.7,0.533616]
[1723390047597,2.66769,2624.0,2623.5,2.6681]
[1723390047812,2.66769,2624.0,2623.6,2.66807]
[1723390047980,2.66758,2624.1,2623.6,2.66807]
[1723390048184,2.66758,2624.1,2623.6,3.437177]
[1723390048408,2.66755,2624.2,2623.7,2.66797]
[1723390048621,2.66733,2624.4,2623.9,2.3549]
[1723390048802,2.6675,2624.2,2623.9,2.3549]
[1723390049001,5.33494,2624.3,2623.9,2.3549]
[1723390049222,7.3,2624.6,2624.0,0.07621991]
[1723390049526,2.66694,2624.8,2624.0,0.07621991]
[1723390049527,2.66677,2624.9,2624.4,5.02557]
[1723390049735,5.33346,2625.0,2624.5,2.66712]
[1723390049893,2.66677,2624.9,2624.5,2.66712]
[1723390050085,2.66677,2624.9,2624.5,0.77689184]
[1723390050788,5.33349,2625.0,2624.5,0.77689184]
[1723390051009,2.66677,2624.9,2624.5,0.77689184]
[1723390051626,5.33345,2625.0,2624.5,0.77689184]
[1723390051824,2.66672,2625.0,2624.6,0.58785902]
[1723390052137,5.33345,2625.0,2624.6,0.58785902]
[1723390052428,2.6666,2625.1,2624.6,3.25484902]
[1723390052642,3.0,2625.3,2624.7,3.14634033]
[1723390052790,5.33277,2625.3,2624.8,2.43448637]
[1723390052994,5.33277,2625.3,2624.9,0.55808267]
[1723390052995,2.66646,2625.3,2624.9,0.55808267]
[1723390053608,5.33288,2625.3,2624.9,0.55808267]
[1723390053819,2.66644,2625.3,2624.9,0.55808267]
[1723390054527,5.33285,2625.3,2624.9,0.55808267]
[1723390054737,2.66673,2625.0,2624.8,2.3583]
[1723390055028,2.66677,2624.9,2624.4,5.02553]
[1723390055228,2.66693,2624.8,2624.5,0.502553]
[1723390055415,2.66693,2624.8,2624.4,2.3583]
[1723390055733,2.66673,2625.0,2624.4,5.02556]
[1723390056100,2.6665,2625.2,2624.5,3.169686]
[1723390056402,2.6664,2625.3,2624.8,5.02515]
[1723390056652,2.6664,2625.3,2624.8,2.3583]
[1723390056653,2.66653,2625.2,2624.8,2.3583]
[1723390056854,2.6664,2625.3,2624.9,0.76921]
[1723390057176,2.66626,2625.4,2624.9,0.76921]
[1723390057363,2.66623,2625.5,2624.9,2.66675]
[1723390057764,2.66623,2625.5,2624.8,2.43448659]
[1723390057966,2.66658,2625.1,2624.8,2.43448659]
[1723390058284,5.33307,2625.2,2624.8,2.3583]
[1723390058576,2.66601,2625.7,2625.1,2.66651]
[1723390058880,2.66605,2625.6,2625.2,0.07617688]
[1723390059044,2.66616,2625.5,2625.0,2.3583]
[1723390059241,2.66616,2625.5,2625.1,0.502499]
[1723390059476,2.66587,2625.8,2625.1,0.502499]
[1723390059772,5.33266,2625.4,2625.0,2.3583]
[1723390059974,2.6663,2625.4,2625.0,2.3583]
[1723390060184,2.66637,2625.3,2625.0,2.3583]
[1723390060536,2.66637,2625.3,2625.0,2.860816]
[1723390060978,2.66637,2625.3,2624.4,2.66722]
[1723390060979,2.744,2625.2,2624.3,2.66731]
[1723390062088,3.0,2625.1,2624.0,2.3583]
[1723390062257,2.66742,2624.3,2624.0,2.3583]
[1723390062455,5.0046,2624.9,2624.0,2.3583]
[1723390062456,2.66677,2624.9,2624.0,2.3583]
[1723390062658,2.66677,2624.9,2624.4,2.3583]
[1723390062843,2.66713,2624.6,2624.4,2.3583]
[1723390063267,5.33387,2624.8,2624.4,2.3583]
[1723390063463,2.66673,2625.0,2624.4,2.59413]
[1723390064145,2.66689,2624.8,2624.4,2.59413]
[1723390067384,2.4666,2624.7,2623.8,2.4809]
[1723390067547,2.66734,2624.4,2623.9,2.66774]
[1723390067748,2.6668,2624.9,2623.8,2.4809]
[1723390067749,2.66738,2624.3,2623.8,2.4809]
[1723390068148,7.3,2624.8,2623.3,3.0]
[1723390068345,9.96687,2624.8,2624.2,2.66742]
[1723390068583,2.66701,2624.7,2624.4,2.4809]
[1723390069085,2.66687,2624.8,2624.4,2.4809]
[1723390071146,2.66699,2624.7,2624.4,2.4809]
[1723390071351,2.66708,2624.6,2624.4,2.4809]
[1723390071867,2.66687,2624.8,2624.4,2.4809]
[1723390072066,2.66672,2625.0,2624.4,2.995729]
[1723390072302,2.66672,2625.0,2624.5,2.66709]
[1723390072467,5.66653,2625.2,2624.5,2.66709]
[1723390072468,2.66662,2625.1,2624.5,2.66709]
[1723390073173,2.66667,2625.0,2624.5,2.66709]
[1723390073497,5.66651,2625.2,2624.7,2.2979]
[1723390073679,2.66651,2625.2,2624.7,2.2979]
[1723390074005,2.66666,2625.0,2624.7,2.2979]
[1723390074308,5.33306,2625.2,2624.7,2.794407]
[1723390074494,2.66658,2625.1,2624.7,2.794407]
[1723390075200,2.66651,2625.2,2624.7,2.794407]
[1723390075404,2.66651,2625.2,2624.8,0.8128487]
[1723390076417,2.66611,2625.6,2624.9,2.2979]
[1723390076614,2.66591,2625.8,2625.3,2.2979]
[1723390076804,2.66591,2625.8,2625.4,0.763076]
[1723390076805,2.66597,2625.7,2625.4,0.763076]
[1723390076993,2.66524,2626.4,2625.7,2.6659]
[1723390077175,2.66524,2626.4,2625.8,0.07615803]
[1723390077508,2.66546,2626.2,2625.8,0.07615803]
[1723390077886,5.33057,2626.4,2625.8,0.07615803]
[1723390078086,2.66535,2626.3,2625.8,0.58015383]
[1723390078495,2.66535,2626.3,2625.8,0.5039958]
[1723390078681,2.66535,2626.3,2625.8,0.58015385]
[1723390079924,2.66535,2626.3,2625.8,3.24598385]
[1723390080226,2.3617,2626.7,2625.9,0.59118739]
[1723390080414,2.3617,2626.7,2625.2,3.0]
[1723390080415,2.66591,2625.8,2625.3,2.2979]
[1723390080779,2.66576,2625.9,2625.4,2.6662]
[1723390080993,2.6657,2626.0,2625.5,0.49641]
[1723390081518,2.6657,2626.0,2625.5,3.16255]
[1723390081519,2.66566,2626.0,2625.5,3.16255]
[1723390081692,2.66554,2626.2,2625.6,3.248915]
[1723390082016,2.66561,2626.1,2625.6,0.582875]
[1723390082320,2.66552,2626.2,2625.7,2.2979]
[1723390082623,2.66528,2626.4,2625.9,2.66573]
[1723390082863,2.66528,2626.4,2625.8,0.5546755]
[1723390083125,2.66536,2626.3,2625.9,0.81843455]
[1723390083479,5.33058,2626.4,2625.9,3.48415455]
[1723390083718,5.33058,2626.4,2625.9,0.81843455]
[1723390084015,2.66535,2626.3,2626.0,0.40389401]
[1723390084219,5.33022,2626.6,2626.0,0.40389401]
[1723390084421,2.66515,2626.5,2626.0,3.06947401]
[1723390084587,2.66515,2626.5,2626.1,0.3069474]
[1723390084786,2.66509,2626.6,2626.1,0.3069474]
[1723390085010,2.66509,2626.6,2626.2,2.2714]
[1723390085214,2.66494,2626.7,2626.2,2.2714]
[1723390085385,2.66494,2626.7,2626.2,3.06233974]
[1723390086119,12.96489,2626.8,2626.2,5.72774974]
[1723390086316,3.0,2626.7,2626.2,3.06233974]
[1723390086533,2.66508,2626.6,2626.2,2.2714]
[1723390086826,2.66515,2626.5,2626.2,2.2714]
[1723390086986,2.6654,2626.3,2625.9,2.2714]
[1723390087187,2.6654,2626.3,2625.9,2.765126]
[1723390087188,2.66543,2626.3,2625.9,2.765126]
[1723390087405,2.6655,2626.2,2625.9,2.2714]
[1723390087932,2.66541,2626.3,2625.9,2.2714]
[1723390088079,2.66541,2626.3,2626.0,0.493723]
[1723390088282,2.66518,2626.5,2626.0,0.493723]
[1723390088511,2.66524,2626.4,2625.9,4.93709]
[1723390089092,2.66524,2626.4,2625.9,2.2714]
[1723390089298,2.66549,2626.2,2625.9,2.2714]
[1723390089482,2.66536,2626.3,2625.9,2.2714]
[1723390089722,2.6656,2626.1,2625.9,2.2714]
[1723390090324,2.66545,2626.2,2625.9,2.2714]
[1723390090545,2.66528,2626.4,2625.9,2.2714]
[1723390090731,2.66528,2626.4,2626.0,0.493719]
[1723390090908,2.66528,2626.4,2626.0,2.66564]
[1723390091101,2.66507,2626.6,2626.2,2.3326]
[1723390091340,3.0,2626.7,2626.2,2.3326]
[1723390091651,2.6655,2626.2,2625.8,2.3326]
[1723390091850,2.66534,2626.3,2625.8,2.3326]
[1723390092533,2.66561,2626.1,2625.8,2.3326]
[1723390093141,5.33122,2626.1,2625.8,2.3326]
[1723390093339,2.66567,2626.0,2625.8,2.56586]
[1723390093645,2.66561,2626.1,2625.8,2.56586]
[1723390093646,2.66575,2625.9,2625.8,2.56586]
[1723390093826,5.33125,2626.1,2625.8,2.56586]
[1723390094011,2.66561,2626.1,2625.8,2.56586]
[1723390094229,2.66566,2626.0,2625.8,2.56586]
[1723390094447,2.66566,2626.0,2625.8,2.3326]
[1723390096018,2.66575,2625.9,2625.8,2.3326]
[1723390096219,2.66566,2626.0,2625.8,2.3326]
[1723390096757,2.66549,2626.2,2625.8,2.3326]
[1723390096962,2.66565,2626.0,2625.8,2.3326]
[1723390097140,2.66565,2626.0,2625.9,0.23326]
[1723390097332,2.66565,2626.0,2625.8,2.3326]
[1723390097513,2.66509,2626.6,2625.5,2.3326]
[1723390097714,2.66582,2625.9,2625.5,2.3326]
[1723390098120,2.66562,2626.1,2625.5,2.3326]
[1723390098345,2.66562,2626.1,2625.6,3.16588]
[1723390098542,2.66562,2626.1,2625.6,5.83188]
[1723390098763,2.66562,2626.1,2625.7,2.3326]
[1723390098932,2.66583,2625.9,2625.6,0.49988]
[1723390099125,2.66585,2625.8,2625.6,0.49988]
[1723390099327,2.66585,2625.8,2625.4,2.3326]
[1723390100924,2.66597,2625.7,2625.4,2.3326]
[1723390102036,2.66581,2625.9,2625.4,4.9988]
[1723390102237,2.66581,2625.9,2625.5,0.23326]
[1723390102438,2.6656,2626.1,2625.6,2.66604]
[1723390102632,2.6656,2626.1,2625.5,2.89936]
[1723390102880,2.66567,2626.0,2625.6,0.523196]
[1723390104339,2.6656,2626.1,2625.6,3.189246]
[1723390104542,5.33123,2626.1,2625.7,2.4551]
[1723390104880,2.66565,2626.0,2625.8,0.5644346]
[1723390105439,2.66565,2626.0,2625.6,3.189246]
[1723390105440,2.66595,2625.7,2625.5,0.23326]
[1723390105749,5.33157,2625.9,2625.4,2.66625]
[1723390105948,2.61585,2625.8,2625.3,2.4551]
[1723390106154,2.66595,2625.7,2625.3,2.4551]
[1723390106369,2.66595,2625.7,2625.4,0.512149]
[1723390107367,2.66595,2625.7,2625.3,5.12145]
[1723390108288,2.66575,2625.9,2625.4,2.66624]
[1723390108588,2.66587,2625.8,2625.3,5.12145]
[1723390109699,2.66607,2625.6,2625.3,2.4551]
[1723390109865,2.66607,2625.6,2625.3,2.967259]
[1723390111497,2.66626,2625.4,2625.3,2.967259]
[1723390111707,2.66577,2625.9,2625.3,2.4551]
[1723390111862,2.66597,2625.7,2625.3,2.967254]
[1723390112068,2.66597,2625.7,2625.3,2.4551]
[1723390113583,2.66582,2625.9,2625.3,2.4551]
[1723390113785,2.66561,2626.1,2625.4,2.66625]
[1723390113999,2.66575,2625.9,2625.4,2.66625]
[1723390114205,5.33158,2625.9,2625.5,0.512135]
[1723390114763,2.66588,2625.8,2625.5,0.512135]
[1723390115005,2.66596,2625.7,2625.5,0.512135]
[1723390115206,2.66585,2625.8,2625.3,5.12145]
[1723390115384,2.66585,2625.8,2625.4,0.778784]
[1723390117072,5.33159,2625.9,2625.4,0.778784]
[1723390117400,5.33155,2625.9,2625.4,3.445034]
[1723390117611,5.33155,2625.9,2625.5,0.5900134]
[1723390117775,2.6659,2625.8,2625.5,0.5900134]
[1723390117976,2.66575,2625.9,2625.5,0.5900134]
[1723390118201,2.66595,2625.7,2625.5,0.5900134]
[1723390118406,2.66595,2625.7,2625.3,5.12145]
[1723390118905,2.66595,2625.7,2625.3,2.4551]
[1723390118906,2.66607,2625.6,2625.3,2.4551]
[1723390119480,5.33197,2625.7,2625.3,2.4551]
[1723390119688,5.33197,2625.7,2625.4,0.512151]
[1723390119990,2.66595,2625.7,2625.3,2.4551]
[1723390120451,2.66595,2625.7,2624.7,8.06064616]
[1723390120452,2.4173,2626.0,2624.9,2.3004]
[1723390120580,5.3328,2625.3,2624.9,2.3004]
[1723390120785,2.6665,2625.2,2625.0,0.496724]
[1723390120986,2.4173,2625.1,2624.2,2.39373616]
[1723390121199,2.4173,2625.1,2624.1,0.07621173]
[1723390121200,2.66701,2624.7,2624.1,0.07621173]
[1723390121368,2.66701,2624.7,2624.1,2.66751]
[1723390121571,2.66701,2624.7,2623.9,4.96813]
[1723390121775,5.08389,2625.1,2623.9,4.96813]
[1723390121776,2.4173,2625.1,2623.9,4.96813]
[1723390121972,5.4173,2625.1,2624.0,0.496813]
[1723390122272,2.4173,2624.5,2623.6,2.69574776]
[1723390122477,2.66774,2624.0,2623.6,2.69574776]
[1723390122699,2.6678,2623.9,2623.6,2.69574776]
[1723390122875,2.6678,2623.9,2623.7,0.26957478]
[1723390123220,2.66744,2624.3,2623.7,2.93755478]
[1723390123368,2.66702,2624.7,2624.2,2.66747]
[1723390123696,2.66702,2624.7,2623.9,2.3004]
[1723390123697,2.66757,2624.2,2623.9,2.3004]
[1723390124483,5.08429,2624.7,2623.9,2.3004]
[1723390124682,2.66758,2624.1,2623.9,2.3004]
[1723390124891,2.66758,2624.1,2623.9,2.61345312]
[1723390125081,2.66768,2624.0,2623.9,2.61345312]
[1723390125313,2.66758,2624.1,2623.9,0.31305312]
[1723390125483,2.66783,2623.9,2623.6,2.3879]
[1723390126822,2.6679,2623.8,2623.6,2.3879]
[1723390127390,2.66764,2624.1,2623.6,2.3879]
[1723390127816,2.66786,2623.9,2623.6,2.3879]
[1723390128091,2.66792,2623.8,2623.6,2.3879]
[1723390128691,2.66798,2623.7,2623.6,2.3879]
[1723390129636,2.66798,2623.7,2623.2,2.4168]
[1723390129786,2.66798,2623.7,2623.2,2.68365]
[1723390130394,2.66775,2624.0,2623.2,5.35208]
[1723390130708,2.66791,2623.8,2623.2,5.35208]
[1723390130916,5.33587,2623.8,2623.3,0.802058]
[1723390131111,2.668,2623.7,2623.3,0.802058]
[1723390131498,2.66791,2623.8,2623.3,0.802058]
[1723390131499,2.66816,2623.6,2623.3,0.802058]
[1723390131707,2.66816,2623.6,2623.2,2.4168]
[1723390134117,2.66815,2623.6,2623.2,2.4168]
[1723390134319,2.66814,2623.6,2623.2,2.4168]
[1723390134635,5.3363,2623.6,2623.2,2.92534]
[1723390134939,2.66769,2624.0,2622.8,2.4168]
[1723390134940,2.66826,2623.5,2622.8,2.4168]
[1723390135106,2.66882,2622.9,2622.4,2.4168]
[1723390135308,5.09302,2623.2,2622.4,2.4168]
[1723390135541,2.66885,2622.9,2622.5,0.24168]
[1723390135826,2.66885,2622.9,2622.4,2.4168]
[1723390135827,2.66902,2622.7,2622.4,2.4168]
[1723390136031,2.66902,2622.7,2622.1,5.08633]
[1723390136032,2.66916,2622.6,2622.1,5.08633]
[1723390136342,2.66924,2622.5,2622.1,2.4168]
[1723390136497,2.66922,2622.5,2622.2,0.24168]
[1723390136828,2.4245,2622.9,2621.9,2.66976]
[1723390137033,2.66924,2622.5,2621.7,2.66995]
[1723390137340,2.66933,2622.4,2621.9,2.6698]
[1723390137533,2.66924,2622.5,2622.0,0.26698]
[1723390137752,2.66886,2622.9,2622.0,2.68378]
[1723390137900,2.66864,2623.1,2622.5,2.66919]
[1723390138096,3.0,2623.0,2622.5,3.203049]
[1723390138295,5.66878,2623.0,2622.3,2.66931]
[1723390138526,5.66878,2623.0,2622.1,0.07625738]
[1723390138527,3.0,2623.0,2622.5,5.33838]
[1723390138834,2.66822,2623.5,2622.5,5.33838]
[1723390138835,2.66825,2623.5,2622.6,0.0762546]
[1723390138998,2.6683,2623.4,2622.9,2.66872]
[1723390139198,2.66794,2623.8,2623.1,2.66852]
[1723390139435,2.66794,2623.8,2622.6,2.9374331]
[1723390139436,2.6683,2623.4,2622.9,2.66873]
[1723390139636,2.6683,2623.4,2622.8,2.6689]
[1723390139837,2.6683,2623.4,2622.9,0.588785]
[1723390140040,2.6683,2623.4,2622.8,2.66889]
[1723390140252,2.6683,2623.4,2622.9,2.66879]
[1723390140416,5.33632,2623.6,2623.0,2.66869]
[1723390140740,2.66821,2623.5,2623.0,2.66869]
[1723390141149,2.66815,2623.6,2623.0,5.33733]
[1723390141440,2.66815,2623.6,2623.1,0.266869]
[1723390142043,2.66824,2623.5,2623.1,0.266869]
[1723390142260,2.66794,2623.8,2623.1,2.75990927]
[1723390142418,2.66794,2623.8,2623.3,2.66838]
[1723390142815,2.66778,2623.9,2623.4,2.66823]
[1723390143009,2.668,2623.7,2623.2,2.94442093]
[1723390143246,2.66819,2623.5,2623.2,0.27599093]
[1723390143544,2.66819,2623.5,2623.1,2.4168]
[1723390143744,5.33609,2623.7,2623.1,5.08539]
[1723390143904,5.33605,2623.7,2623.1,5.08534]
[1723390144258,10.044,2624.0,2623.3,2.66838]
[1723390144259,7.3,2624.0,2623.3,2.66838]
[1723390144439,9.96774,2624.0,2623.5,2.66817]
[1723390145530,7.3,2624.0,2623.6,2.4192]
[1723390145841,7.3,2624.0,2623.7,0.508737]
[1723390146051,2.6675,2624.2,2623.7,0.508737]
[1723390146369,2.66744,2624.3,2623.8,2.66783]
[1723390146663,7.3,2624.5,2623.9,3.2521647]
[1723390146865,7.3,2624.5,2624.1,2.66754]
[1723390147266,7.3,2624.5,2624.0,2.74380096]
[1723390147267,9.96718,2624.5,2624.0,2.66759]
[1723390148582,9.96718,2624.5,2624.0,3.26719957]
[1723390149543,7.3,2624.5,2624.0,5.33521]
[1723390149741,2.66682,2624.9,2624.3,2.66732]
[1723390150070,2.66682,2624.9,2624.3,3.161472]
[1723390150244,7.3,2625.0,2624.4,2.66721]
[1723390150446,9.96668,2625.0,2624.4,2.66721]
[1723390150647,2.66687,2624.8,2624.3,0.494152]
[1723390150846,7.3,2625.0,2624.1,4.94173]
[1723390150847,2.66714,2624.6,2624.1,2.2742]
[1723390151244,5.33388,2624.8,2624.1,4.94176]
[1723390151582,5.33388,2624.8,2624.2,2.66746]
[1723390152262,2.667,2624.7,2624.2,2.66746]
[1723390152666,2.667,2624.7,2624.2,3.428385]
[1723390153761,2.66692,2624.8,2624.2,3.428385]
[1723390153958,2.66692,2624.8,2624.2,6.095755]
[1723390154376,2.6665,2625.2,2624.6,2.66706]
[1723390154656,10.3,2625.3,2624.2,0.760925]
[1723390154657,7.3,2625.3,2624.9,2.2742]
[1723390154858,2.66661,2625.1,2624.5,5.33421]
[1723390155071,2.66661,2625.1,2624.6,4.94126]
[1723390155280,2.66637,2625.3,2624.7,0.494126]
[1723390155448,2.66637,2625.3,2624.8,2.66684]
[1723390155634,2.66646,2625.2,2624.7,0.494126]
[1723390155969,2.66621,2625.5,2624.9,2.66671]
[1723390156172,2.66621,2625.5,2624.7,3.161036]
[1723390156173,2.66621,2625.5,2625.0,2.933331]
[1723390156372,5.33242,2625.5,2625.0,2.933331]
[1723390156543,2.66621,2625.5,2625.0,2.933281]
[1723390156748,2.66601,2625.7,2625.2,2.66645]
[1723390156950,2.66601,2625.7,2625.2,3.1871821]
[1723390157271,2.66601,2625.7,2625.2,0.5207321]
[1723390157490,2.66601,2625.7,2625.2,3.1871821]
[1723390157851,2.66606,2625.6,2625.2,0.5207321]
[1723390158777,2.66601,2625.7,2625.3,0.54614721]
[1723390159086,2.66617,2625.5,2625.3,0.54614721]
[1723390159285,2.66617,2625.5,2625.1,2.2742]
[1723390159463,5.33204,2625.7,2625.1,4.94075]
[1723390159801,2.66551,2626.2,2625.5,2.2742]
[1723390159939,5.33101,2626.2,2625.6,2.666]
[1723390160135,5.33101,2626.2,2625.7,0.49402]
[1723390160136,2.66566,2626.0,2625.7,0.49402]
[1723390160443,2.66575,2625.9,2625.5,2.2742]
[1723390160748,2.66588,2625.8,2625.5,2.2742]
[1723390160962,2.66588,2625.8,2625.3,2.66629]
[1723390161183,2.66596,2625.7,2625.4,0.266629]
[1723390161377,2.66588,2625.8,2625.4,0.266629]
[1723390161605,2.66596,2625.7,2625.4,0.266629]
[1723390161942,5.33182,2625.8,2625.4,0.266629]
[1723390162258,2.66585,2625.8,2625.2,2.2742]
[1723390162464,2.66605,2625.6,2625.2,2.2742]
[1723390164385,2.66592,2625.8,2625.2,7.60704]
[1723390164546,2.66592,2625.8,2625.3,0.760704]
[1723390164983,2.66592,2625.8,2625.3,3.427054]
[1723390165988,2.66603,2625.7,2625.3,0.760704]
[1723390166157,2.66607,2625.6,2625.2,2.2742]
[1723390166550,2.66592,2625.8,2625.2,2.2742]
[1723390166551,2.66592,2625.8,2625.2,4.94063]
[1723390166881,2.66592,2625.8,2625.2,2.66643]
[1723390167091,2.66584,2625.9,2625.3,2.705643]
[1723390167314,7.3,2626.1,2625.3,2.439]
[1723390167315,2.66602,2625.7,2625.3,2.439]
[1723390167449,2.66612,2625.6,2625.3,2.439]
[1723390167779,2.66612,2625.6,2625.0,7.7722]
[1723390167780,2.6662,2625.5,2625.0,7.7722]
[1723390168083,2.666,2625.7,2625.2,2.66645]
[1723390168586,2.666,2625.7,2625.1,3.44372]
[1723390168783,5.33202,2625.7,2625.1,3.44372]
[1723390168986,2.666,2625.7,2625.2,0.588272]
[1723390169199,2.66582,2625.9,2625.3,2.6663]
[1723390169356,2.66582,2625.9,2625.3,2.66628]
[1723390169555,5.33167,2625.9,2625.4,0.07616982]
[1723390169782,2.66582,2625.9,2625.4,0.33307218]
[1723390169958,2.66582,2625.9,2625.4,2.99931218]
[1723390170454,9.9656,2626.1,2625.5,5.10569]
[1723390170455,12.63121,2626.1,2625.5,5.10569]
[1723390170655,9.9656,2626.1,2625.6,3.47653022]
[1723390170871,2.66575,2625.9,2625.6,0.81050022]
[1723390172087,2.66566,2626.0,2625.6,0.81050022]
[1723390172664,2.66575,2625.9,2625.6,0.81050022]
[1723390172864,2.66575,2625.9,2625.5,2.4396]
[1723390173275,2.66571,2626.0,2625.5,2.4396]
[1723390173483,2.66576,2625.9,2625.5,2.4396]
[1723390173851,2.3537,2626.0,2625.2,2.4396]
[1723390174082,2.3537,2626.0,2624.7,2.66692]
[1723390174083,2.66653,2625.2,2624.7,2.66692]
[1723390174565,2.66652,2625.2,2624.7,2.66692]
[1723390174982,2.66652,2625.2,2624.7,5.33382]
[1723390175150,2.66652,2625.2,2624.7,2.6669]
[1723390175358,2.66633,2625.4,2624.8,0.26669]
[1723390175765,2.66643,2625.3,2624.8,0.26669]
[1723390175985,2.66676,2624.9,2624.5,2.4396]
[1723390176458,2.66663,2625.1,2624.5,5.10667]
[1723390176755,5.33326,2625.1,2624.5,5.10667]
[1723390177071,2.66663,2625.1,2624.6,0.510667]
[1723390177816,2.66663,2625.1,2624.6,3.177737]
[1723390178157,5.33325,2625.1,2624.6,3.177737]
[1723390178353,5.33327,2625.1,2624.6,0.510667]
[1723390178601,2.66662,2625.1,2624.6,0.510667]
[1723390178957,2.66662,2625.1,2624.6,3.177727]
[1723390179291,5.33325,2625.1,2624.7,0.8284397]
[1723390179461,2.66667,2625.0,2624.7,0.8284397]
[1723390179883,2.66655,2625.2,2624.6,2.66706]
[1723390180084,2.66643,2625.3,2624.6,0.07619011]
[1723390180275,2.66643,2625.3,2624.7,2.66689]
[1723390180595,9.96632,2625.4,2624.9,2.6667]
[1723390180758,2.66637,2625.3,2624.9,2.6667]
[1723390181698,2.6656,2626.1,2625.5,2.66615]
[1723390181860,2.66565,2626.0,2625.6,0.266615]
[1723390182492,2.66552,2626.2,2625.6,0.266615]
[1723390182701,3.0,2626.1,2625.7,2.66595]
[1723390182867,5.66557,2626.1,2625.7,0.5598665]
[1723390183192,8.3312,2626.1,2625.7,0.5598665]
[1723390183400,8.3312,2626.1,2625.5,2.6661]
[1723390184398,2.66566,2626.0,2625.5,2.6661]
[1723390184701,2.66565,2626.0,2625.5,2.6661]
[1723390184868,2.66576,2625.9,2625.4,2.66623]
[1723390185069,2.66576,2625.9,2625.5,0.777211]
[1723390185406,5.66561,2626.1,2625.5,3.443341]
[1723390185407,2.66565,2626.0,2625.5,3.443341]
[1723390186296,2.66575,2625.9,2625.5,0.777211]
[1723390186507,5.33157,2625.9,2625.5,0.777211]
[1723390186665,2.66575,2625.9,2625.5,0.777211]
[1723390186990,5.33156,2625.9,2625.5,0.777211]
[1723390187159,2.66575,2625.9,2625.5,0.777211]
[1723390188393,2.66575,2625.9,2625.5,3.443361]